bitfinex-derivatives/quotes_BTCF0:USTF0_20260127
["timestamp","ask_amount","ask_price","bid_price","bid_amount"]
[1769488304444,0.17306481,88871.0,88854.0,0.1014]
[1769488304935,0.16179881,88871.0,88854.0,0.2214]
[1769488305340,0.16179881,88871.0,88856.0,0.011268]
[1769488305837,0.00430446,88870.0,88854.0,0.2214]
[1769488306138,0.00430446,88870.0,88854.0,0.1014]
[1769488308739,0.00430446,88870.0,88854.0,0.1024]
[1769488309848,0.00430446,88870.0,88855.0,0.11862091]
[1769488310145,0.26319881,88871.0,88858.0,0.11864427]
[1769488311138,0.26726599,88871.0,88858.0,0.11864427]
[1769488313146,0.00141474,88870.0,88858.0,0.11864427]
[1769488314848,0.10331296,88869.0,88858.0,0.11864427]
[1769488315150,0.10331296,88869.0,88846.0,0.13511374]
[1769488315151,0.10331296,88869.0,88854.0,0.11936234]
[1769488315853,0.00191296,88868.0,88854.0,0.11936234]
[1769488322456,0.1014,88869.0,88854.0,0.13063034]
[1769488323651,0.1014,88869.0,88854.0,0.11936234]
[1769488324450,0.112666,88869.0,88854.0,0.11936234]
[1769488327955,0.11561056,88869.0,88854.0,0.11936234]
[1769488328856,0.10434456,88869.0,88854.0,0.11936234]
[1769488329047,0.1014,88868.0,88854.0,0.11936234]
[1769488338558,0.1014,88867.0,88854.0,0.11936234]
[1769488345369,0.1014,88867.0,88853.0,0.011268]
[1769488345370,0.1014,88867.0,88856.0,0.1188527]
[1769488350669,0.1014,88867.0,88846.0,0.13511374]
[1769488350670,0.1014,88867.0,88858.0,0.11903647]
[1769488352368,0.1014,88867.0,88860.0,0.11907198]
[1769488354772,0.1014,88867.0,88860.0,0.13033898]
[1769488354972,0.1014,88869.0,88860.0,0.13033898]
[1769488355473,0.1014,88869.0,88860.0,0.11907198]
[1769488360269,0.0026317,88873.0,88860.0,0.11907198]
[1769488360474,0.1014,88872.0,88860.0,0.11907198]
[1769488360875,0.1040317,88872.0,88860.0,0.11907198]
[1769488363571,0.1014,88872.0,88860.0,0.11907198]
[1769488368277,0.1014,88872.0,88860.0,0.13033898]
[1769488369676,0.00452807,88882.0,88863.0,0.11849064]
[1769488369870,0.00452807,88880.0,88865.0,0.11850461]
[1769488370169,0.11252897,88874.0,88865.0,0.11850461]
[1769488370369,0.00452807,88880.0,88865.0,0.11850461]
[1769488370680,0.11252897,88879.0,88865.0,0.11850461]
[1769488370978,0.00448614,88878.0,88865.0,0.11850461]
[1769488371572,0.00448614,88876.0,88865.0,0.11850461]
[1769488371766,0.00448614,88876.0,88863.0,0.001]
[1769488371976,0.00448614,88872.0,88863.0,0.001]
[1769488372173,0.00448614,88872.0,88865.0,0.001]
[1769488372371,0.00448614,88872.0,88855.0,0.11850461]
[1769488373481,0.00448614,88872.0,88856.0,0.12972399]
[1769488374186,0.1014,88871.0,88856.0,0.12972399]
[1769488374483,0.10751151,88871.0,88856.0,0.12972399]
[1769488375780,0.10751151,88871.0,88858.0,0.12922982]
[1769488377387,0.00479084,88870.0,88858.0,0.12922982]
[1769488379089,0.1014,88871.0,88858.0,0.12922982]
[1769488379284,0.47956,88873.0,88858.0,0.12922982]
[1769488379489,0.1014,88872.0,88858.0,0.12922982]
[1769488380193,0.1014,88872.0,88862.0,0.11891653]
[1769488382088,0.1014,88872.0,88858.0,0.11891653]
[1769488382295,0.00322292,88871.0,88858.0,0.11891653]
[1769488382501,0.00322292,88871.0,88858.0,0.13018353]
[1769488382997,0.00322292,88871.0,88858.0,0.11891653]
[1769488383191,0.1024,88872.0,88860.0,0.11892569]
[1769488383686,0.16194569,88870.0,88860.0,0.11892569]
[1769488385494,0.16294569,88870.0,88860.0,0.11892569]
[1769488389706,0.16194569,88870.0,88860.0,0.11892569]
[1769488389907,0.16194569,88870.0,88860.0,0.11992569]
[1769488390208,0.1014,88872.0,88860.0,0.11992569]
[1769488391304,0.1014,88872.0,88860.0,0.11892569]
[1769488391506,0.1014,88872.0,88860.0,0.11992569]
[1769488393011,0.1014,88872.0,88860.0,0.11892569]
[1769488393809,0.1024,88872.0,88860.0,0.11892569]
[1769488394806,0.16194569,88870.0,88860.0,0.11892569]
[1769488396010,0.16294569,88870.0,88860.0,0.11892569]
[1769488397216,0.16194569,88870.0,88860.0,0.11892569]
[1769488397508,0.16294569,88870.0,88860.0,0.11892569]
[1769488397899,0.001,88870.0,88860.0,0.11892569]
[1769488398915,0.001,88870.0,88860.0,0.13019269]
[1769488399703,0.001,88870.0,88862.0,0.011267]
[1769488399910,0.001,88870.0,88862.0,0.13101209]
[1769488400914,0.1014,88872.0,88862.0,0.13101209]
[1769488401799,0.4862,88872.0,88866.0,0.11974075]
[1769488402010,0.1014,88874.0,88866.0,0.11974075]
[1769488402311,0.48628,88877.0,88866.0,0.11974075]
[1769488402507,0.36628,88877.0,88866.0,0.11974075]
[1769488403513,0.36728,88877.0,88866.0,0.11974075]
[1769488404213,0.36728,88877.0,88866.0,0.13100675]
[1769488405512,0.36728,88877.0,88869.0,0.11768184]
[1769488405915,0.1984,88894.0,88868.0,0.011266]
[1769488405916,0.11243459,88893.0,88881.0,0.011264]
[1769488406216,0.11252011,88893.0,88881.0,0.12894584]
[1769488406908,0.11252011,88893.0,88884.0,0.11768184]
[1769488407619,0.11243459,88892.0,88874.0,0.011265]
[1769488407811,0.11243459,88889.0,88874.0,0.011265]
[1769488408012,0.11243459,88889.0,88874.0,0.12894684]
[1769488409008,0.11243459,88883.0,88858.0,0.09007591]
[1769488409317,0.11243459,88875.0,88858.0,0.11768184]
[1769488409911,0.11243459,88875.0,88860.0,0.11768184]
[1769488415520,0.11243459,88875.0,88861.0,0.011267]
[1769488415722,0.11243459,88875.0,88861.0,0.12894884]
[1769488418124,0.1014,88882.0,88870.0,0.11768184]
[1769488418425,0.1014,88882.0,88874.0,0.11768184]
[1769488418829,0.1014,88893.0,88878.0,0.11768184]
[1769488419125,0.11251378,88888.0,88873.0,0.011265]
[1769488419326,0.11243459,88887.0,88873.0,0.011265]
[1769488419916,0.22494837,88886.0,88872.0,0.11768184]
[1769488420121,0.22494837,88886.0,88878.0,0.001]
[1769488420317,0.11243459,88886.0,88878.0,0.001]
[1769488420723,0.11251125,88885.0,88878.0,0.001]
[1769488421326,0.11251125,88885.0,88868.0,0.1014]
[1769488421327,0.11243459,88884.0,88868.0,0.21908184]
[1769488421526,0.27438028,88880.0,88873.0,0.001]
[1769488421831,0.11243459,88880.0,88873.0,0.001]
[1769488422221,0.11243459,88880.0,88868.0,0.21908184]
[1769488422619,0.27438028,88880.0,88868.0,0.21908184]
[1769488423121,0.27438028,88880.0,88873.0,0.001]
[1769488423320,0.11243459,88880.0,88873.0,0.001]
[1769488424929,0.11243459,88880.0,88869.0,0.011266]
[1769488426122,0.27438028,88880.0,88868.0,0.21908184]
[1769488427124,0.11243459,88880.0,88868.0,0.21908184]
[1769488427624,0.11243459,88880.0,88856.0,0.16851678]
[1769488427625,0.16194569,88880.0,88858.0,0.13511374]
[1769488427824,0.11243459,88866.0,88850.0,0.13511374]
[1769488428025,0.11243459,88859.0,88848.0,0.1014]
[1769488429826,0.11343459,88859.0,88848.0,0.1014]
[1769488430021,0.11343459,88859.0,88849.0,0.011269]
[1769488430322,0.11343459,88859.0,88850.0,0.11768184]
[1769488430323,0.001,88859.0,88850.0,0.11768184]
[1769488430533,0.11243459,88868.0,88850.0,0.11768184]
[1769488431435,0.11253784,88867.0,88853.0,0.11768184]
[1769488431931,0.11253784,88867.0,88855.0,0.11768184]
[1769488432536,0.11353784,88867.0,88855.0,0.11768184]
[1769488432726,0.11353784,88867.0,88857.0,0.11650227]
[1769488434229,0.2233402,88867.0,88854.0,0.49216]
[1769488434637,0.2233402,88867.0,88834.0,0.00650143]
[1769488434638,0.10980236,88863.0,88834.0,0.1230037]
[1769488434829,0.10980236,88852.0,88836.0,0.11650227]
[1769488435640,0.10980236,88859.0,88841.0,0.11650227]
[1769488435838,0.10980236,88859.0,88842.0,0.011269]
[1769488436138,0.10980236,88858.0,88842.0,0.12777127]
[1769488436941,0.10980236,88858.0,88842.0,0.12877127]
[1769488438035,0.10980236,88858.0,88845.0,0.12777127]
[1769488438238,0.10980236,88876.0,88852.0,0.11650227]
[1769488438438,0.10980236,88869.0,88854.0,0.11650227]
[1769488438640,0.2223516,88866.0,88854.0,0.11650227]
[1769488438832,0.10980236,88865.0,88854.0,0.11650227]
[1769488439033,0.2223516,88865.0,88853.0,0.49304]
[1769488439233,0.001,88858.0,88853.0,0.49304]
[1769488440150,0.10980236,88865.0,88854.0,0.001]
[1769488440542,0.11254227,88864.0,88854.0,0.001]
[1769488440737,0.22234463,88864.0,88854.0,0.001]
[1769488441139,0.10980236,88864.0,88854.0,0.001]
[1769488441442,0.11253784,88863.0,88854.0,0.001]
[1769488441644,0.001,88858.0,88853.0,0.49304]
[1769488441844,0.11253784,88863.0,88854.0,0.11650227]
[1769488442042,0.00442469,100090.0,88859.0,0.11650227]
[1769488442043,0.011265,88879.0,88859.0,0.11650227]
[1769488442244,0.12106736,88879.0,88859.0,0.11650227]
[1769488442446,0.11253847,88880.0,88866.0,0.11650227]
[1769488442751,0.10980236,88884.0,88868.0,0.11650227]
[1769488443042,0.11253847,88883.0,88868.0,0.11650227]
[1769488443748,0.22234083,88883.0,88868.0,0.11650227]
[1769488444150,0.10980236,88883.0,88868.0,0.11650227]
[1769488444347,0.11251694,88882.0,88868.0,0.11650227]
[1769488447843,0.2223193,88882.0,88868.0,0.11650227]
[1769488448147,0.10980236,88882.0,88868.0,0.11650227]
[1769488448553,0.11251758,88881.0,88868.0,0.11650227]
[1769488448745,0.10980236,88880.0,88867.0,0.49452]
[1769488450049,0.1984,88889.0,88867.0,0.49452]
[1769488450247,0.11630247,88896.0,88872.0,0.11650227]
[1769488450447,0.00650011,88896.0,88872.0,0.11650227]
[1769488450647,0.11251947,88895.0,88877.0,0.11650227]
[1769488450952,0.11251947,88895.0,88879.0,0.11650227]
[1769488451339,0.22232183,88895.0,88883.0,0.11650227]
[1769488451539,0.22232183,88895.0,88878.0,0.39812]
[1769488451540,0.00650011,88896.0,88885.0,0.11650227]
[1769488451740,0.21120236,88906.0,88889.0,0.11650227]
[1769488451953,0.21120236,88906.0,88886.0,0.3954]
[1769488451954,0.10980236,88906.0,88891.0,0.11650227]
[1769488452155,0.11250365,88905.0,88891.0,0.11650227]
[1769488453158,0.11250365,88905.0,88879.0,0.11650227]
[1769488453159,0.10980236,88904.0,88879.0,0.11650227]
[1769488453353,0.10980236,88898.0,88880.0,0.39812]
[1769488453657,0.10980236,88898.0,88881.0,0.39812]
[1769488453848,0.10980236,88898.0,88882.0,0.497]
[1769488455452,0.10980236,88898.0,88882.0,0.498]
[1769488455647,0.10980236,88896.0,88882.0,0.498]
[1769488456349,0.10980236,88880.0,88856.0,0.25161601]
[1769488456643,0.10980236,88875.0,88862.0,0.1014]
[1769488456848,0.10980236,88875.0,88858.0,0.3006]
[1769488457048,0.10980236,88873.0,88859.0,0.3006]
[1769488457851,0.10980236,88878.0,88862.0,0.001]
[1769488458050,0.10474034,88877.0,88862.0,0.001]
[1769488458250,0.11252834,88874.0,88862.0,0.001]
[1769488458453,0.10980236,88878.0,88860.0,0.11650227]
[1769488458660,0.10474251,88877.0,88860.0,0.11650227]
[1769488458849,0.11252391,88875.0,88860.0,0.11650227]
[1769488459049,0.10980236,88878.0,88860.0,0.11650227]
[1769488459249,0.21454487,88877.0,88860.0,0.11650227]
[1769488459451,0.11252707,88875.0,88860.0,0.11650227]
[1769488459957,0.10980236,88877.0,88860.0,0.11650227]
[1769488460158,0.21727218,88876.0,88862.0,0.001]
[1769488460353,0.11252707,88876.0,88862.0,0.001]
[1769488460951,0.001,88875.0,88860.0,0.11650227]
[1769488461749,0.11252517,88874.0,88862.0,0.001]
[1769488462159,0.011264,88884.0,88862.0,0.11276044]
[1769488462359,0.11252644,88876.0,88862.0,0.11276044]
[1769488462659,0.11009738,88889.0,88866.0,0.11176044]
[1769488462851,0.10474557,88888.0,88868.0,0.11176044]
[1769488463051,0.11252644,88882.0,88868.0,0.11176044]
[1769488463256,0.12136138,88889.0,88868.0,0.11176044]
[1769488463453,0.10473413,88888.0,88868.0,0.11176044]
[1769488463764,0.001,88875.0,88868.0,0.21316044]
[1769488463962,0.001,88875.0,88869.0,0.11176044]
[1769488464456,0.11009738,88888.0,88869.0,0.11176044]
[1769488464653,0.10473641,88887.0,88869.0,0.11176044]
[1769488464854,0.10473641,88886.0,88869.0,0.11176044]
[1769488465054,0.11252201,88887.0,88869.0,0.11176044]
[1769488465361,0.10473647,88886.0,88869.0,0.11176044]
[1769488465548,0.11251441,88887.0,88869.0,0.11176044]
[1769488465752,0.10474828,88886.0,88869.0,0.11176044]
[1769488466060,0.11009738,88887.0,88869.0,0.11176044]
[1769488466356,0.10474828,88886.0,88869.0,0.11176044]
[1769488466660,0.001,88875.0,88869.0,0.11176044]
[1769488467260,0.12136138,88886.0,88869.0,0.11276044]
[1769488467463,0.10477812,88885.0,88869.0,0.11276044]
[1769488467773,0.23388275,88886.0,88869.0,0.11276044]
[1769488467966,0.10477812,88885.0,88869.0,0.11276044]
[1769488468154,0.11252137,88885.0,88869.0,0.11276044]
[1769488468353,0.10479677,88884.0,88869.0,0.11276044]
[1769488468657,0.12136138,88886.0,88869.0,0.11276044]
[1769488468858,0.10479818,88885.0,88869.0,0.11276044]
[1769488469053,0.22261179,88883.0,88869.0,0.11276044]
[1769488469248,0.011264,88886.0,88869.0,0.11276044]
[1769488469249,0.11009738,88882.0,88869.0,0.11176044]
[1769488469455,0.001,88875.0,88869.0,0.11176044]
[1769488470165,0.11009738,88882.0,88869.0,0.11176044]
[1769488470865,0.011264,88886.0,88869.0,0.11176044]
[1769488470866,0.12136138,88886.0,88869.0,0.11176044]
[1769488471061,0.001,88875.0,88869.0,0.11176044]
[1769488473863,0.011264,88884.0,88869.0,0.11176044]
[1769488474062,0.011264,88882.0,88869.0,0.11276044]
[1769488474570,0.12136138,88882.0,88869.0,0.11276044]
[1769488474862,0.001,88875.0,88868.0,0.1014]
[1769488476067,0.11009738,88878.0,88868.0,0.1014]
[1769488476270,0.11009738,88878.0,88869.0,0.001]
[1769488476866,0.011265,88875.0,88868.0,0.1014]
[1769488477067,0.011265,88875.0,88868.0,0.1024]
[1769488477773,0.12136238,88878.0,88868.0,0.1014]
[1769488477973,0.11009738,88878.0,88868.0,0.1014]
[1769488479574,0.12136238,88877.0,88868.0,0.1024]
[1769488480271,0.12136238,88877.0,88868.0,0.1014]
[1769488480468,0.10487449,88876.0,88868.0,0.1024]
[1769488480669,0.10487449,88875.0,88869.0,0.11176044]
[1769488480869,0.10487449,88874.0,88869.0,0.11176044]
[1769488481171,0.11252074,88889.0,88873.0,0.11176044]
[1769488481475,0.10487319,88888.0,88875.0,0.11176044]
[1769488481676,0.10487319,88887.0,88875.0,0.11176044]
[1769488481866,0.10487319,88886.0,88875.0,0.11176044]
[1769488482066,0.011263,88890.0,88875.0,0.11176044]
[1769488482267,0.11252201,88889.0,88875.0,0.11176044]
[1769488482568,0.011263,88893.0,88875.0,0.11176044]
[1769488482976,0.011263,88891.0,88875.0,0.11176044]
[1769488483479,0.001,88889.0,88875.0,0.11176044]
[1769488484177,0.011263,88891.0,88875.0,0.11276044]
[1769488484369,0.12136038,88894.0,88875.0,0.11276044]
[1769488484777,0.11250871,88893.0,88875.0,0.12402544]
[1769488485578,0.11250871,88893.0,88875.0,0.12302544]
[1769488485880,0.001,88889.0,88875.0,0.12302544]
[1769488486576,0.011263,88892.0,88875.0,0.12402544]
[1769488486975,0.11009738,88894.0,88875.0,0.12402544]
[1769488487173,0.11009738,88894.0,88875.0,0.12302544]
[1769488487374,0.001,88889.0,88877.0,0.11176044]
[1769488487576,0.001,88889.0,88879.0,0.011265]
[1769488487773,0.001,88889.0,88880.0,0.11176044]
[1769488489179,0.1014,88896.0,88880.0,0.11176044]
[1769488489581,0.11250555,88895.0,88880.0,0.11176044]
[1769488489982,0.1014,88896.0,88880.0,0.12302544]
[1769488490975,0.1014,88896.0,88880.0,0.12402544]
[1769488492383,0.1024,88896.0,88880.0,0.12302544]
[1769488493282,0.1024,88896.0,88883.0,0.11711179]
[1769488493482,0.11009738,88904.0,88887.0,0.11711179]
[1769488493890,0.11250112,88903.0,88887.0,0.11711179]
[1769488494187,0.10585409,88902.0,88887.0,0.11711179]
[1769488494378,0.10585409,88901.0,88887.0,0.11711179]
[1769488494577,0.10585409,88900.0,88887.0,0.11711179]
[1769488494781,0.011262,88902.0,88887.0,0.11711179]
[1769488494782,0.10585409,88899.0,88887.0,0.11711179]
[1769488494981,0.10585409,88898.0,88887.0,0.11711179]
[1769488495180,0.10585409,88897.0,88887.0,0.11711179]
[1769488495383,0.10685409,88896.0,88887.0,0.11711179]
[1769488495582,0.10585409,88895.0,88887.0,0.11711179]
[1769488495885,0.10585409,88894.0,88887.0,0.11711179]
[1769488496087,0.011262,88902.0,88887.0,0.11711179]
[1769488496279,0.001,88898.0,88887.0,0.11711179]
[1769488496481,0.10581909,88897.0,88887.0,0.11711179]
[1769488496678,0.10581909,88896.0,88887.0,0.11711179]
[1769488496879,0.10581909,88895.0,88887.0,0.11711179]
[1769488497082,0.10581909,88894.0,88887.0,0.11711179]
[1769488497386,0.11249796,88903.0,88887.0,0.11711179]
[1769488497687,0.10579495,88902.0,88887.0,0.11711179]
[1769488497878,0.10579495,88901.0,88887.0,0.11711179]
[1769488498079,0.10579495,88900.0,88887.0,0.11711179]
[1769488498279,0.10579495,88899.0,88887.0,0.11711179]
[1769488498473,0.001,88896.0,88887.0,0.11711179]
[1769488498685,0.10579495,88895.0,88887.0,0.11711179]
[1769488498886,0.001,88896.0,88887.0,0.11711179]
[1769488499086,0.10922497,88894.0,88874.0,0.11711179]
[1769488499282,0.10922497,88892.0,88873.0,0.011265]
[1769488499485,0.10922497,88890.0,88869.0,0.11711179]
[1769488499787,0.10922497,88890.0,88871.0,0.12837779]
[1769488500181,0.11249669,88889.0,88871.0,0.12837779]
[1769488500380,0.11249669,88889.0,88874.0,0.11711179]
[1769488500581,0.11249669,88889.0,88878.0,0.11711179]
[1769488500983,0.10922497,88892.0,88878.0,0.11711179]
[1769488501178,0.10922497,88890.0,88871.0,0.11711179]
[1769488501882,0.11250492,88889.0,88871.0,0.11811179]
[1769488502592,0.11250492,88889.0,88871.0,0.11711179]
[1769488503191,0.11250492,88889.0,88873.0,0.11711179]
[1769488503399,0.11250492,88889.0,88875.0,0.11711179]
[1769488504186,0.10922497,88888.0,88875.0,0.11711179]
[1769488504382,0.10922497,88884.0,88860.0,0.67569945]
[1769488504581,0.10922497,88884.0,88863.0,0.12837879]
[1769488504787,0.10922497,88884.0,88861.0,0.10136]
[1769488504788,0.10922497,88879.0,88861.0,0.11711179]
[1769488504982,0.10922497,88879.0,88862.0,0.11711179]
[1769488505496,0.10922497,88877.0,88861.0,0.10136]
[1769488505684,0.10922497,88875.0,88861.0,0.10136]
[1769488506194,0.10922497,88875.0,88862.0,0.001]
[1769488507196,0.11252644,88874.0,88853.0,0.12837979]
[1769488507380,0.10922497,88873.0,88855.0,0.011268]
[1769488507788,0.10922497,88873.0,88861.0,0.001]
[1769488508492,0.10922497,88873.0,88856.0,0.11711179]
[1769488509178,0.10922497,88873.0,88857.0,0.011268]
[1769488509392,0.10922497,88873.0,88861.0,0.001]
[1769488510891,0.10922497,88873.0,88857.0,0.011268]
[1769488511695,0.10922497,88873.0,88861.0,0.001]
[1769488512394,0.10922497,88873.0,88857.0,0.001]
[1769488512595,0.10922497,88873.0,88857.0,0.012268]
[1769488512809,0.10922497,88879.0,88857.0,0.12937979]
[1769488513001,0.10576187,88878.0,88861.0,0.11711179]
[1769488513299,0.1125277,88876.0,88861.0,0.11711179]
[1769488513499,0.10136,88884.0,88866.0,0.17313366]
[1769488513694,0.10574361,88883.0,88870.0,0.11711179]
[1769488514001,0.11252454,88878.0,88870.0,0.11711179]
[1769488514202,0.10922497,88883.0,88870.0,0.11711179]
[1769488514401,0.2149598,88882.0,88870.0,0.11711179]
[1769488514596,0.21825367,88881.0,88870.0,0.11711179]
[1769488514901,0.10573483,88880.0,88870.0,0.11711179]
[1769488515201,0.11251884,88880.0,88870.0,0.11711179]
[1769488515403,0.10922497,88882.0,88870.0,0.11811179]
[1769488515607,0.10572871,88881.0,88870.0,0.11811179]
[1769488515797,0.10136,88884.0,88871.0,0.11711179]
[1769488517003,0.001,88880.0,88871.0,0.11711179]
[1769488517605,0.10136,88884.0,88871.0,0.11711179]
[1769488517802,0.10236,88884.0,88871.0,0.11711179]
[1769488518404,0.10136,88884.0,88871.0,0.11711179]
[1769488518605,0.001,88880.0,88871.0,0.11711179]
[1769488519900,0.10136,88884.0,88871.0,0.11711179]
[1769488520207,0.21158497,88884.0,88871.0,0.11711179]
[1769488520405,0.1057358,88883.0,88871.0,0.11711179]
[1769488520607,0.21158497,88884.0,88871.0,0.11711179]
[1769488520810,0.001,88880.0,88871.0,0.11711179]
[1769488521504,0.12140824,88883.0,88866.0,0.11252925]
[1769488521809,0.11014424,88883.0,88871.0,0.11252925]
[1769488522305,0.1057441,88882.0,88871.0,0.11252925]
[1769488522506,0.11014424,88883.0,88871.0,0.11252925]
[1769488522706,0.10574399,88882.0,88871.0,0.11252925]
[1769488522901,0.11014424,88883.0,88871.0,0.11252925]
[1769488523102,0.10574405,88882.0,88871.0,0.11252925]
[1769488523306,0.001,88883.0,88871.0,0.11252925]
[1769488523505,0.10574939,88882.0,88871.0,0.11252925]
[1769488523812,0.001,88880.0,88871.0,0.11252925]
[1769488524411,0.001,88882.0,88871.0,0.11252925]
[1769488525414,0.001,88880.0,88871.0,0.11252925]
[1769488526314,0.11140703,88889.0,88873.0,0.11501952]
[1769488526498,0.10578876,88888.0,88873.0,0.11501952]
[1769488526702,0.10578876,88887.0,88873.0,0.11501952]
[1769488527011,0.001,88882.0,88873.0,0.11501952]
[1769488527712,0.11140703,88888.0,88873.0,0.11601952]
[1769488527911,0.10580501,88887.0,88873.0,0.11601952]
[1769488528115,0.10580501,88886.0,88873.0,0.11601952]
[1769488528314,0.10580501,88885.0,88873.0,0.11601952]
[1769488528516,0.001,88882.0,88873.0,0.11501952]
[1769488528702,0.10580501,88881.0,88873.0,0.11501952]
[1769488529102,0.001,88882.0,88873.0,0.11501952]
[1769488529401,0.10584978,88881.0,88873.0,0.11501952]
[1769488529608,0.001,88882.0,88873.0,0.11501952]
[1769488529908,0.10584978,88881.0,88873.0,0.11501952]
[1769488530110,0.001,88886.0,88873.0,0.11501952]
[1769488530406,0.10585292,88885.0,88873.0,0.11501952]
[1769488530609,0.10585292,88884.0,88873.0,0.11501952]
[1769488530810,0.001,88882.0,88873.0,0.11501952]
[1769488531012,0.10585292,88881.0,88873.0,0.11501952]
[1769488531202,0.10585292,88880.0,88873.0,0.11501952]
[1769488531401,0.10585292,88879.0,88873.0,0.11501952]
[1769488531600,0.10585292,88878.0,88873.0,0.11501952]
[1769488531804,0.10585292,88877.0,88873.0,0.11501952]
[1769488532011,0.10585292,88876.0,88873.0,0.11501952]
[1769488532215,0.10585292,88875.0,88873.0,0.11501952]
[1769488532418,0.001,88885.0,88873.0,0.11501952]
[1769488532716,0.10589072,88884.0,88873.0,0.11501952]
[1769488532915,0.001,88885.0,88873.0,0.11501952]
[1769488532916,0.10589072,88883.0,88873.0,0.11501952]
[1769488533116,0.10589072,88882.0,88873.0,0.11501952]
[1769488533411,0.10589072,88882.0,88851.0,0.011268]
[1769488533412,0.11140703,88876.0,88860.0,0.1014]
[1769488533714,0.11140703,88874.0,88860.0,0.1014]
[1769488533915,0.11140703,88872.0,88860.0,0.1014]
[1769488534112,0.10589072,88871.0,88860.0,0.1014]
[1769488534313,0.10589072,88871.0,88861.0,0.011267]
[1769488535714,0.10689072,88871.0,88861.0,0.011267]
[1769488535917,0.10589072,88870.0,88861.0,0.011267]
[1769488536220,0.21729775,88870.0,88860.0,0.1014]
[1769488536418,0.10589072,88869.0,88860.0,0.1014]
[1769488538314,0.10689072,88869.0,88860.0,0.1014]
[1769488538516,0.10589072,88868.0,88860.0,0.1014]
[1769488540418,0.11140703,88870.0,88860.0,0.1014]
[1769488540726,0.001,88868.0,88860.0,0.1014]
[1769488541024,0.11240703,88868.0,88856.0,0.1014]
[1769488541222,0.11140703,88868.0,88856.0,0.1014]
[1769488541424,0.11240703,88868.0,88856.0,0.1014]
[1769488542019,0.11140703,88868.0,88856.0,0.1014]
[1769488542220,0.11240703,88868.0,88856.0,0.1014]
[1769488543539,0.11140703,88868.0,88856.0,0.1014]
[1769488543739,0.11240703,88868.0,88856.0,0.1014]
[1769488544533,0.11140703,88868.0,88856.0,0.1014]
[1769488544738,0.11240703,88868.0,88856.0,0.1014]
[1769488547441,0.11140703,88868.0,88856.0,0.1014]
[1769488547643,0.11240703,88868.0,88856.0,0.1014]
[1769488557444,0.11140703,88868.0,88856.0,0.1014]
[1769488557748,0.11240703,88868.0,88856.0,0.1014]
[1769488558849,0.11240703,88868.0,88856.0,0.21813614]
[1769488559853,0.11140703,88868.0,88856.0,0.21813614]
[1769488561650,0.11140703,88868.0,88856.0,0.1014]
[1769488561853,0.11240703,88868.0,88856.0,0.1014]
[1769488562251,0.10599985,88867.0,88856.0,0.1014]
[1769488562444,0.11140703,88868.0,88856.0,0.1014]
[1769488562643,0.10599985,88867.0,88856.0,0.1014]
[1769488562847,0.11240703,88868.0,88856.0,0.1014]
[1769488563047,0.10599985,88867.0,88856.0,0.1014]
[1769488563250,0.11240703,88868.0,88856.0,0.1014]
[1769488563452,0.10601645,88867.0,88856.0,0.1014]
[1769488563654,0.10601651,88866.0,88856.0,0.1014]
[1769488563854,0.11240703,88868.0,88856.0,0.1014]
[1769488564057,0.1111252,88866.0,88856.0,0.1014]
[1769488564948,0.001,88867.0,88856.0,0.21813614]
[1769488565646,0.001,88866.0,88856.0,0.21813614]
[1769488566356,0.1111252,88871.0,88856.0,0.21813614]
[1769488566556,0.1111252,88869.0,88856.0,0.21813614]
[1769488566760,0.10600674,88868.0,88856.0,0.21813614]
[1769488566954,0.10600674,88867.0,88856.0,0.21813614]
[1769488567154,0.1111252,88869.0,88856.0,0.21813614]
[1769488567354,0.10600453,88868.0,88856.0,0.21813614]
[1769488567558,0.10600453,88867.0,88856.0,0.21813614]
[1769488567757,0.1111252,88869.0,88856.0,0.21813614]
[1769488567959,0.10600453,88868.0,88856.0,0.21813614]
[1769488568160,0.10600453,88867.0,88856.0,0.21813614]
[1769488568357,0.1111252,88869.0,88856.0,0.21813614]
[1769488568562,0.10600318,88868.0,88856.0,0.21813614]
[1769488568761,0.10600318,88867.0,88856.0,0.11673614]
[1769488568965,0.1111252,88869.0,88856.0,0.11673614]
[1769488569168,0.10600318,88868.0,88856.0,0.11673614]
[1769488569362,0.10600318,88867.0,88856.0,0.11673614]
[1769488569562,0.1121252,88869.0,88856.0,0.11673614]
[1769488569757,0.10600181,88868.0,88856.0,0.11673614]
[1769488569956,0.10600181,88867.0,88856.0,0.11673614]
[1769488570160,0.1111252,88869.0,88856.0,0.11673614]
[1769488570360,0.106001,88868.0,88856.0,0.11673614]
[1769488570561,0.106001,88867.0,88856.0,0.11673614]
[1769488570762,0.106001,88866.0,88856.0,0.11673614]
[1769488570962,0.106001,88865.0,88856.0,0.11673614]
[1769488571260,0.106001,88864.0,88856.0,0.11673614]
[1769488571460,0.106001,88863.0,88856.0,0.11673614]
[1769488571662,0.1111252,88869.0,88856.0,0.11673614]
[1769488571864,0.10600066,88868.0,88856.0,0.11673614]
[1769488572074,0.1111252,88866.0,88854.0,0.3986]
[1769488572266,0.1111252,88864.0,88854.0,0.3986]
[1769488572467,0.10600066,88863.0,88854.0,0.3986]
[1769488572662,0.10600066,88862.0,88854.0,0.3986]
[1769488572862,0.1111252,88862.0,88854.0,0.3986]
[1769488573063,0.10600163,88861.0,88851.0,0.1014]
[1769488573273,0.10600163,88861.0,88847.0,0.11673614]
[1769488573274,0.1111252,88859.0,88848.0,0.41224]
[1769488573571,0.1111252,88857.0,88842.0,0.11673614]
[1769488573773,0.1111252,88848.0,88835.0,0.00683176]
[1769488573967,0.1111252,88846.0,88835.0,0.00683176]
[1769488574671,0.10596054,88845.0,88835.0,0.00683176]
[1769488574871,0.1111252,88846.0,88832.0,0.1014]
[1769488575075,0.1111252,88844.0,88834.0,0.00683176]
[1769488575563,0.1111252,88844.0,88832.0,0.1014]
[1769488576461,0.1121252,88844.0,88832.0,0.1014]
[1769488576868,0.1121252,88844.0,88831.0,0.28804]
[1769488577069,0.1121252,88844.0,88833.0,0.00683176]
[1769488577465,0.1111252,88842.0,88826.0,0.52985614]
[1769488577866,0.1111252,88842.0,88827.0,0.00683176]
[1769488578276,0.1111252,88842.0,88826.0,0.52985614]
[1769488578574,0.1111252,88842.0,88827.0,0.00683176]
[1769488578879,0.1111252,88842.0,88826.0,0.52985614]
[1769488579072,0.1111252,88842.0,88827.0,0.00683176]
[1769488579466,0.1111252,88842.0,88826.0,0.52985614]
[1769488579669,0.1111252,88842.0,88827.0,0.00683176]
[1769488580171,0.1111252,88842.0,88826.0,0.52985614]
[1769488580366,0.1111252,88842.0,88827.0,0.00683176]